Cogmind - Beta 10.1 @@@ ROGUE MODE // 2020.10.04 @ 16:47:33 Player: BOTHUNTER Result: Destroyed by G-47 Trooper with Particle Gun Performance ------------- Evolutions (2) 1000 Regions Visited (5) 1000 Robots Destroyed (54) 270 Value Destroyed (1328) 1328 Prototype IDs (2) 40 Alien Tech Used (0) 0 Bonus (344) 344 TOTAL SCORE: 3982 Bonus ------- High Alert Combat Kills 44 Aligned with FarCom 300 Cogmind --------- Core Integrity 0/550 Matter 146/300 Energy 84/160 System Corruption 0% Temperature Cool (36) Movement Walking (150) Ox1 Location -8/Materials Parts ------- > --- POWER (1) -------- Light Nuclear Core > --- PROPULSION (2) --- Aluminum Leg Aluminum Leg > --- UTILITY (6) ------ Large Storage Unit Advanced Targeting Computer Advanced Targeting Computer Advanced Targeting Computer Hacking Suite > --- WEAPON (2) ------- Axe > --- INVENTORY (10) --- Aluminum Leg Cryofiber Web Small Storage Unit High-capacity Storage Unit Latent Energy Streamer Grenade Launcher Peak State ------------ > --- POWER ------------ Light Nuclear Core > --- PROPULSION ------- Aluminum Leg Carbon-fiber Leg > --- UTILITY ---------- Large Storage Unit Advanced Targeting Computer Advanced Targeting Computer Advanced Targeting Computer Hacking Suite Hacking Suite > --- WEAPON ----------- Heavy Assault Rifle Axe > --- INVENTORY -------- Aluminum Leg Small Storage Unit High-capacity Storage Unit Latent Energy Streamer Grenade Launcher [Rating: 29] Favorites ----------- Power Ion Engine Engine Ion Engine Power Core Light Nuclear Core Propulsion Aluminum Leg Leg Aluminum Leg Wheel Wheel Utility Large Storage Unit Device Supersonic Drone Bay Storage Large Storage Unit Processor Advanced Targeting Computer Hackware Hacking Suite Protection Weapon Shielding Weapon Assault Rifle Energy Gun Heavy EM Pulse Gun Energy Cannon Latent Energy Streamer Ballistic Gun Assault Rifle Ballistic Cannon Assault Cannon Launcher Grenade Launcher Slashing Weapon Axe Build | -11 -10 -10 -10 -9 -8 ------- Run | Scr Mat Min Exi Min Mat Slots Evolved 4 | . . . . . 4 Power . | . . . . . . Propulsion . | . . . . . . Utility 4 | . . . . . 4 Weapon . | . . . . . . Parts Attached 47 | 5 8 1 4 2 27 Power 5 | . 2 . . . 3 Engine 3 | . 2 . . . 1 Core 2 | . . . . . 2 Reactor . | . . . . . . Propulsion 13 | 2 2 1 . . 8 Treads . | . . . . . . Leg 12 | 2 2 1 . . 7 Wheel 1 | . . . . . 1 Hover . | . . . . . . Flight . | . . . . . . Utility 14 | 1 2 . 2 1 8 Device 1 | . . . 1 . . Storage 3 | 1 1 . 1 . . Processor 5 | . 1 . . . 4 Hackware 2 | . . . . . 2 Protection 3 | . . . . 1 2 Artifact . | . . . . . . Weapon 15 | 2 2 . 2 1 8 Energy Gun 3 | 1 . . . 1 1 Energy Cannon 2 | . . . 2 . . Ballistic Gun 3 | 1 . . . . 2 Ballistic Cannon 1 | . . . . . 1 Launcher 5 | . 2 . . . 3 Special Weapon . | . . . . . . Impact Weapon . | . . . . . . Slashing Weapon 1 | . . . . . 1 Piercing Weapon . | . . . . . . Special Melee Weapon . | . . . . . . Unidentified Prototypes 2 | . . . 2 . . Parts Lost 17 | . 1 . . . 16 Power 2 | . . . . . 2 Propulsion 6 | . . . . . 6 Utility 3 | . . . . . 3 Weapon 6 | . 1 . . . 5 Highest Loss Streak 5 | . 1 . . . 5 Average Slot Usage (%) 86 | . 79 100 94 99 76 Engine 9 | . 8 14 14 14 5 Leg 23 | . 28 28 28 28 15 Storage 12 | . 14 14 16 14 9 Processor 7 | . 5 14 6 . 7 Hackware 4 | . . . . . 12 Protection 4 | . . . . 13 9 Energy Gun 3 | . 2 . . 12 2 Energy Cannon 1 | . . . 7 . . Ballistic Gun 10 | . 14 14 14 14 3 Ballistic Cannon 1 | . . . . . 3 Launcher 5 | . 6 14 6 . 3 Naked Turns . | . . . . . . Heaviest Build 65 | 7 42 42 65 65 33 Greatest Support 25 | 20 20 20 20 20 25 Greatest Overweight (x) 5 | . 2 2 3 3 5 Average Overweight (x) 1 | . . 2 2 1 1 Largest Inventory Capacity 18 | 6 12 12 18 18 10 Average Capacity 10 | 5 6 12 13 10 10 Most Carried 12 | 5 8 11 12 12 10 Average Carried 8 | 2 5 9 11 10 7 Final Capacity 18 | 6 12 12 18 10 10 Final Carried 12 | 5 7 11 12 10 6 Class Distribution -------------------- 74% | Mutant 13% | Scavenger-Mutant 11% | Hacker-Mutant Dominant Class ---------------- Mutant | -10/Materials Mutant | -10/Mines Mutant | -10/Exiles Mutant | -9/Mines Scavenger-Mutant | -8/Materials Resources | -11 -10 -10 -10 -9 -8 ----------- Run | Scr Mat Min Exi Min Mat Matter Collected 1184 | 246 129 113 . 122 574 Remotely . | . . . . . . Salvage Created 1303 | . 248 106 . 135 814 Parts 100 | . 18 9 . 10 63 Haulers Intercepted 2 | . 2 . . . . Recyclers Shooed . | . . . . . . Parts Field Recycled . | . . . . . . Retrieved Matter . | . . . . . . Parts Self-Destructed . | . . . . . . Prevented . | . . . . . . Kills | -11 -10 -10 -10 -9 -8 ------- Run | Scr Mat Min Exi Min Mat Combat Hostiles Destroyed 37 | . 4 5 . 1 27 Melee 1 | . . . . . 1 Guns 10 | . 4 2 . . 4 Cannons 6 | . . . . . 6 AOE 20 | . . 3 . 1 16 Classes Destroyed 11 | . 4 . . 1 6 Worker 6 | . 3 . . 1 2 Builder 2 | . . . . . 2 Tunneler 1 | . . . . . 1 Hauler 2 | . 2 . . . . Recycler 1 | . . . . 1 . Operator 3 | . . . . . 3 Watcher 2 | . . . . . 2 Swarmer 15 | . 1 3 . . 11 Grunt 16 | . 3 2 . 1 10 Sentry 5 | . . . . . 5 Hunter 1 | . . . . . 1 Best Kill Streak 17 | . 4 3 . 2 17 Combat Bots Only 14 | . 2 3 . 1 14 Max Kills in Single Turn 6 | . 1 2 . 1 6 Gunslinging . | . . . . . . Exploded 4 | . . 2 . 1 4 Melee 1 | . . . . . 1 Uniques/NPCs Destroyed . | . . . . . . Combat | -11 -10 -10 -10 -9 -8 -------- Run | Scr Mat Min Exi Min Mat Damage Taken 2727 | . 308 275 . 34 2110 Core 685 | . 40 91 . . 554 Absorbed by Shields . | . . . . . . Core Remaining (%) 73 | 100 . . . 47 . Volleys Fired 161 | . 45 26 . 4 86 Largest 2 | . 2 2 . 2 2 Hottest 79 | . 60 50 . 65 79 Shots Fired 204 | . 60 30 . 8 106 Gun 135 | . 57 26 . 8 44 Cannon 46 | . . . . . 46 Launcher 23 | . 3 4 . . 16 Special . | . . . . . . Kinetic 153 | . 45 26 . 4 78 Thermal 13 | . 12 . . . 1 Explosive 23 | . 3 4 . . 16 Electromagnetic 15 | . . . . 4 11 Robot Hit Streak 13 | . 7 5 . 4 13 Robot Miss Streak 4 | . 4 2 . 1 4 Penetration Max . | . . . . . . Secondary Targets 2 | . 2 . . . . Max Gunslinging Chain 1 | . 1 . . . . Shots Hit Robots 128 | . 37 20 . 6 65 Core Hits 89 | . 14 8 . 3 64 Critical Hits . | . . . . . . Critical Kills . | . . . . . . Critical Parts Destroyed . | . . . . . . Melee Attacks 8 | . . . . . 8 Impact . | . . . . . . Slashing 8 | . . . . . 8 Piercing . | . . . . . . Sneak Attacks . | . . . . . . Combat Hostiles . | . . . . . . Follow-up Attacks . | . . . . . . Damage Inflicted 3565 | . 684 443 . 106 2332 Guns 1190 | . 427 265 . 72 426 Cannons 713 | . . . . . 713 Explosions 1551 | . 257 178 . 34 1082 Melee 111 | . . . . . 111 Ramming . | . . . . . . Kinetic 1718 | . 383 265 . 25 1045 Thermal 230 | . 182 . . 34 14 Explosive 1379 | . 119 178 . . 1082 Electromagnetic 127 | . . . . 47 80 Impact . | . . . . . . Slashing 111 | . . . . . 111 Piercing . | . . . . . . Highest Corruption . | . . . . . . Average Corruption . | . . . . . . Corruption Purged . | . . . . . . Overload Shots . | . . . . . . Overflow Damage 65 | . 58 1 . . 6 Projectiles . | . . . . . . Explosions 59 | . 58 1 . . . Melee 6 | . . . . . 6 Knockbacks 2 | . . . . . 2 Impact . | . . . . . . Kinetic 2 | . . . . . 2 Secondary . | . . . . . . Self-Inflicted Damage 68 | . . . . . 68 Shots 4 | . . . . . 4 Rammed . | . . . . . . Targets Rammed . | . . . . . . Kicked . | . . . . . . Crushed . | . . . . . . Highest Temperature 61 | . 1 . . 18 61 Average Temperature 14 | . 1 . . 6 16 Received Heat Transfer 1077 | . 90 141 . 18 828 Siege Activations . | . . . . . . Robots Corrupted . | . . . . . . Combat Hostiles . | . . . . . . Parts Fried . | . . . . . . Impact Corruptions . | . . . . . . Robots Melted . | . . . . . . Combat Hostiles . | . . . . . . Parts Melted . | . . . . . . Heat Transferred 237 | . 200 . . . 37 Parts Sabotaged . | . . . . . . Parts Stolen . | . . . . . . Parts Stripped . | . . . . . . Power Chain Reactions 1 | . . . . 1 . Missiles Intercepted . | . . . . . . Alert | -11 -10 -10 -10 -9 -8 ------- Run | Scr Mat Min Exi Min Mat Peak Influence 485 | . 172 137 . 30 485 Initial 2 | . . 2 . . . Average 159 | . 72 84 . 13 294 Maximum Alert Level 2 | . . . . . 2 Low Security (%) 68 | 100 100 100 . 100 26 Level 1 25 | . . . . . 59 Level 2 6 | . . . . . 14 Level 3 . | . . . . . . Level 4 . | . . . . . . Level 5 . | . . . . . . High Security . | . . . . . . Max Security . | . . . . . . Squads Dispatched 10 | . 2 . . . 8 Investigation 6 | . 1 . . . 5 Extermination . | . . . . . . Reinforcement 4 | . 1 . . . 3 Assault . | . . . . . . Garrison . | . . . . . . Intercept . | . . . . . . Construction Impeded 1 | . . . . . 1 Haulers Reinforced . | . . . . . . Stealth | -11 -10 -10 -10 -9 -8 --------- Run | Scr Mat Min Exi Min Mat Distress Signals 2 | . . . . . 2 Communications Jammed . | . . . . . . Distress Signals . | . . . . . . Times Spotted 66 | . 13 4 . 2 47 Peak Tracking Total 9 | . 5 3 . 2 9 Tactical Retreats 6 | . 1 . . 1 4 Traps | -11 -10 -10 -10 -9 -8 ------- Run | Scr Mat Min Exi Min Mat Traps Triggered 1 | . 1 . . . . Indirectly . | . . . . . . Trap Hack Attempts . | . . . . . . Triggered . | . . . . . . Disarmed . | . . . . . . Reprogrammed . | . . . . . . Reused . | . . . . . . Traps Extracted . | . . . . . . Installed . | . . . . . . Triggered . | . . . . . . Machines | -11 -10 -10 -10 -9 -8 ---------- Run | Scr Mat Min Exi Min Mat Machines Disabled 8 | . 2 . . . 6 Max in Single Turn 2 | . 2 . . . 2 Machines Sabotaged . | . . . . . . Garrisons Compromised . | . . . . . . Overloaded Fab Kills . | . . . . . . Fab Network Shutdowns . | . . . . . . Hacking | -11 -10 -10 -10 -9 -8 --------- Run | Scr Mat Min Exi Min Mat Machines Accessed 7 | . 1 . 1 . 5 Terminals 6 | . 1 . . . 5 Fabricators . | . . . . . . Repair Stations . | . . . . . . Recycling Units . | . . . . . . Scanalyzers . | . . . . . . Garrison Access . | . . . . . . Total Hacks 20 | . 3 . 2 . 15 Successful 12 | . . . 2 . 10 Failed 7 | . 3 . . . 4 Catastrophic 2 | . 1 . . . 1 Database Lockouts 1 | . . . . . 1 Manual 14 | . 3 . 1 . 10 Terminals 18 | . 3 . . . 15 Fabricators . | . . . . . . Repair Stations . | . . . . . . Recycling Units . | . . . . . . Scanalyzers . | . . . . . . Garrison Access . | . . . . . . Terminal Hacks 11 | . . . 2 . 9 Record 2 | . . . 2 . . Robot Analysis 3 | . . . . . 3 Level Access Points 1 | . . . . . 1 Terminal Index 1 | . . . . . 1 Alert Level 1 | . . . . . 1 Unreport Threat 2 | . . . . . 2 Recall Reinforcements 1 | . . . . . 1 Fabricator Hacks . | . . . . . . Repair Station Hacks . | . . . . . . Recycling Unit Hacks . | . . . . . . Scanalyzer . | . . . . . . Garrison Access Hacks . | . . . . . . Unauthorized Hacks 1 | . . . . . 1 Terminals 1 | . . . . . 1 Assimilate 1 | . . . . . 1 Fabricators . | . . . . . . Repair Stations . | . . . . . . Recycling Units . | . . . . . . Scanalyzers . | . . . . . . Garrison Access . | . . . . . . Data Cores Recovered 2 | . . . . . 2 Used 2 | . . . . . 2 Hacking Detections 6 | . 1 . . . 5 Full Trace Events 6 | . 1 . . . 5 Feedback Events . | . . . . . . Feedback Blocked . | . . . . . . Robot Schematics Acquired . | . . . . . . Robots Built . | . . . . . . Matter . | . . . . . . Time . | . . . . . . Total Robot Build Rating . | . . . . . . Part Schematics Acquired . | . . . . . . Parts Built . | . . . . . . Matter . | . . . . . . Time . | . . . . . . Total Part Build Rating . | . . . . . . Parts Repaired . | . . . . . . Time . | . . . . . . Parts Recycled . | . . . . . . Recycled Matter . | . . . . . . Retrieved Matter . | . . . . . . Retrieved Components . | . . . . . . Parts Scanalyzed . | . . . . . . Part Schematics Acquired . | . . . . . . Parts Damaged . | . . . . . . Bothacking | -11 -10 -10 -10 -9 -8 ------------ Run | Scr Mat Min Exi Min Mat Used RIF Installer . | . . . . . . Robots Hacked . | . . . . . . Non-combat . | . . . . . . Combat . | . . . . . . Robot Hacks Applied . | . . . . . . Relay Couplers Released . | . . . . . . Robots Rewired . | . . . . . . Allies Hacked . | . . . . . . Hacks Repelled . | . . . . . . Allies | -11 -10 -10 -10 -9 -8 -------- Run | Scr Mat Min Exi Min Mat Total Allies . | . . . . . . Largest Group . | . . . . . . Highest-Rated Group . | . . . . . . Highest-Rated Ally . | . . . . . . Total Orders . | . . . . . . Ally Attacks . | . . . . . . Total Damage . | . . . . . . Kills . | . . . . . . Allies Corrupted . | . . . . . . Allies Melted . | . . . . . . Intel | -11 -10 -10 -10 -9 -8 ------- Run | Scr Mat Min Exi Min Mat Robot Analysis Total 3 | . . . . . 3 Derelict Logs Recovered 3 | . . 2 . 1 . Drone Launches . | . . . . . . Drone Recoveries . | . . . . . . Exploration | -11 -10 -10 -10 -9 -8 ------------- Run | Scr Mat Min Exi Min Mat Turns Passed 3268 | 76 559 487 599 400 1147 Spaces Moved 1694 | 60 343 237 318 206 530 Core 13 | 11 . . . . 2 Treads . | . . . . . . Legs 1469 | 49 343 237 318 206 316 Wheels 212 | . . . . . 212 Hover . | . . . . . . Flight . | . . . . . . Fastest Speed 50 | 50 120 180 150 150 90 Average Speed 146 | 107 124 180 184 152 124 Slowest Speed 300 | 120 180 180 210 210 300 Overloaded Moves . | . . . . . . Propulsion Burnouts . | . . . . . . Robots Hopped . | . . . . . . Cave-ins Triggered . | . . . . . . Exploration Rate (%) 44 | 4 46 50 64 66 35 Regions Visited 5 Branch Regions 3 Pre-discovered Areas 2 | . . . . 2 . Known Exits Taken . | . . . . . . Unknown Exits Taken 5 | 1 1 1 1 1 . Scrap Searched 2 | . . 1 . 1 . Spaces Dug 12 | . . . . . 12 Terrain Destroyed 147 | . 19 20 . 6 102 Melee 3 | . . . . . 3 Projectile 9 | . . . . . 9 AOE 135 | . 19 20 . 6 90 Terrain Rammed . | . . . . . . Walls Destroyed . | . . . . . . Machines Disabled . | . . . . . . Actions | -11 -10 -10 -10 -9 -8 --------- Run | Scr Mat Min Exi Min Mat Total 2272 | 69 421 267 332 285 898 Wait 310 | . 4 1 2 68 235 Move 1689 | 59 342 236 317 205 530 Hop . | . . . . . . Pick Up 27 | 5 10 3 3 1 5 Fast Attach 25 | 5 2 . 4 1 13 Attach 16 | . 3 . . 1 12 Detach 5 | . 2 . . 1 2 Swap 6 | . 3 1 . . 2 Drop 25 | . 10 . 6 4 5 Fire 161 | . 45 26 . 4 86 Melee 8 | . . . . . 8 Ram . | . . . . . . Kick . | . . . . . . Crush . | . . . . . . Escape Stasis . | . . . . . . Rewire . | . . . . . . Trap . | . . . . . . Miscellaneous . | . . . . . . Route ------- -11/Scrapyard -10/Materials (discovered 2 exits: [*Mat] / [*Min]) -10/Mines -10/Exiles -9/Mines (discovered 2 exits: *Mat x2) -8/Materials (discovered 3 exits: *Fac x3) History --------- Turn | Location | Event 3 | -11/Scrapyard | Discovered new exit (range 15) 77 | -11/Scrapyard | Entered Materials 307 | -10/Materials | Build established: Mutant 445 | -10/Materials | Discovered new exit (range 14) 503 | -10/Materials | Discovered new exit (range 10) 636 | -10/Materials | Entered Mines 645 | -10/Mines | Learned Materials emergency access door positions 719 | -10/Mines | Core integrity fell below 50% 812 | -10/Mines | Learned location of 1 exit from Materials 1114 | -10/Mines | Deemed a non-threat by the Exiles lab entrance 1116 | -10/Mines | Discovered new exit (range 5) 1123 | -10/Mines | Entered Exiles 1169 | -10/Exiles | Met 8R-AWN 1236 | -10/Exiles | Met EX-HEX 1292 | -10/Exiles | Met EX-BIN 1328 | -10/Exiles | Aligned with FarCom system 1329 | -10/Exiles | Given EX-Vault access code 1373 | -10/Exiles | Opened EX-Vault 1386 | -10/Exiles | Found Prototype Energy Cannon 1386 | -10/Exiles | Identified Latent Energy Streamer 1397 | -10/Exiles | Found Prototype Device 1397 | -10/Exiles | Identified Supersonic Drone Bay 1487 | -10/Exiles | Warned to stay clear of 0b10 Research branches 1549 | -10/Exiles | Met EX-DEC 1684 | -10/Exiles | Discovered new exit (range 12) 1722 | -10/Exiles | Left Exiles lab with Latent Energy Streamer 1722 | -10/Exiles | Entered Mines 1748 | -9/Mines | Received a Rocket Launcher from a helpful Derelict 1786 | -9/Mines | Discovered new exit (range 9) 1972 | -9/Mines | Learned location of Storage (-7) 2064 | -9/Mines | Discovered new exit (range 10) 2122 | -9/Mines | Entered Materials 2122 | -8/Materials | Evolved 4 slots: Utility x4 2123 | -8/Materials | Identified exit to Factory 2501 | -8/Materials | Central database locked down 2579 | -8/Materials | Destroyed 14 combat bots 2609 | -8/Materials | Lost 5 parts (1p2n1u1w) 2873 | -8/Materials | Build established: Hacker-Mutant 2914 | -8/Materials | Lost 5 parts (1p2n1u1w) 3017 | -8/Materials | Core integrity fell below 50% 3266 | -8/Materials | Core integrity fell below 20% 3269 | -8/Materials | Destroyed by G-47 Trooper with Particle Gun Last Messages --------------- 03054_ Acquired Aluminum Leg. 03056_ Acquired 51 matter. 03060_ Acquired Lgt. Nuclear Core. 03065_ Acquired Aluminum Leg. 03091_ U-05 Engineer lays Concrete. 03092_ U-05 Engineer builds a Wall. 03104_ W-25 Informer sends out distress signal. 03106_ U-05 Engineer lays Concrete. 03115_ U-05 Engineer builds a Wall. 03190_ R-06 Scavenger collects Imp. Ion Engine. 03249_ Acquired Cryofiber Web. 03253_ ALERT: Hostiles spotted, dispatching reinforcements to Terminal M002. 03258_ Connecting with Terminal... >>Alert(Purge) Purged threat record, alert level lowered. 03258_ ALERT: Suspicious activity at Terminal M009. Dispatching Investigation squad. 03259_ Carbon-fiber Leg destroyed. 03263_ Hvy. Assault Rifle destroyed. 03267_ Hacking Suite destroyed. Map ----- +----------------------------------------------------+ | | | | | | | | | | | | | | | | | | | | | | | | | | | | | | | ?????????????????????????????????????????????????? | | ?????????????????????????????????????????????????? | | ???????????????????????????????????????????????### | | ???????????????????????????????????????????##### # | | ????????????????????????#####??????????????# | | ????????????????????????# #??????????????# | | ????????????????????????# < #??????????????#[ | | ????????????????????????#g g#?????????????## """ | | ????????????????????????+ g +?????????????## | | ????????????????????????# g#?????????????## | | ????????????????????????#@ #????????????### | | ?????????????????#?????## g ##???????????# # | | ????????????????## ##### #???????????# # | | ????????????????# h " #???????????# # | | ????????????????# "Tg #???????????# # | | ???????????# / #????########## | | ???????????# # ###### #????# # | | ???????????? ??????######+######?# !" "T" | | ????????????????????# #?# # | | ????????????????????# ### ####### | | ????????????????????# + + #?????? | | ????????????????????# """ """ ###""" [ #?????? | | ????????????????????# """ """ #?#""" ! #?????? | | ????????????????????# """ """ #?#""" #?????? | | ????????????????????# #?# #?????? | | ????????????????????#######+#####?#####+####?????? | | ????????????????????????? ?????????? ??????????? | | ????????????????????????? ??????????? ??????????? | | ????????????????????????????????????? ???????????? | | ????????????????????????????????????? ???????????? | | ????????????????????????????????????#?????????#### | | ??????????????????????????????????????????????# | | ??????????????????????????????????????????????# | | ??????????????????????????????????????????????# | | ??????????????????????????????????????????????# | +----------------------------------------------------+ Best States ------------- Heat Dissipation 31 Energy Generation 10 Energy Capacity 250 Matter Stores 300 Matter Capacity 300 Sight Range 16 Terrain Scan Density 10 Armor Coverage 150 Weapon Shielding 33 Evasion (%) 40 Targeting Accuracy 24 Offensive Hacking 20 Item Schematics ----------------- None Robot Schematics ------------------ None Fabricated ------------ Nothing Alien Tech Used ----------------- None Achievements -------------- None Challenges ------------ None Game ------ Seed TiamatSegregatorDriver Manual? 0 Play Time 00:26:37 Cumulative 97.5 hours Start 2020.10.04 @ 16:13:26 End 2020.10.04 @ 16:47:33 Sessions 1 Manual Loads 0 Difficulty Rogue Special Mode None Game No. 144 Rogue 120 Adventurer 22 Explorer 2 Win Type - Total 1 Types 1/0/0/0/0/0/0/0/0 Lore% 47 Gallery% 51 Achievement% 42 Wizard Run 0 Options --------- ASCII 0 Keyboard 0 Movement Numpad Keybinds 0 Fullscreen 1 Font 14/SmallcapsGlow Map View 84x54 Tactical HUD 1 Map Filters NONE Filters NONE Steam 1 RUN: 37139ba2-d3c7-449d-99e4-d4ca0002989d